fUSD/lending_fUSD_20250505
["ID","MTS","AMOUNT","RATE_DAILY","PERIOD"]
[359938646,1746437446776,-181.5973,0.0001981,2]
[359938647,1746437446785,-419.24,0.0001981,2]
[359938648,1746437446794,-450.0,0.0001981,2]
[359938649,1746437446804,-450.0,0.0001981,2]
[359938650,1746437446813,-450.0,0.0001981,2]
[359938651,1746437446823,-450.0,0.0001981,2]
[359938652,1746437446832,-450.0,0.0001981,2]
[359938653,1746437446841,-453.09,0.0001981,2]
[359938654,1746437446850,-532.18,0.0001981,2]
[359938655,1746437446859,-450.0,0.0001981,2]
[359938656,1746437446869,-450.0,0.0001981,2]
[359938657,1746437446878,-450.0,0.0001981,2]
[359938658,1746437446887,-450.0,0.0001981,2]
[359938659,1746437446896,-450.0,0.0001981,2]
[359938660,1746437446905,-558.496662,0.0001981,2]
[359938661,1746437446915,-450.0,0.0001981,2]
[359938662,1746437446924,-179.667918,0.0001981,2]
[359938663,1746437446933,-181.5973,0.00019811,2]
[359938664,1746437446942,-181.5973,0.00019811,2]
[359938665,1746437446953,-450.0,0.00019811,2]
[359938666,1746437446963,-450.0,0.00019811,2]
[359938667,1746437446972,-12500.0,0.00019812,2]
[359938668,1746437446980,-151.0,0.00019812,2]
[359938669,1746437447132,-151.0,0.00019812,2]
[359938670,1746437447142,-450.0,0.0001982,2]
[359938671,1746437447151,-450.0,0.0001982,2]
[359938672,1746437447161,-450.0,0.0001982,2]
[359938673,1746437447170,-450.0,0.0001982,2]
[359938674,1746437447179,-450.0,0.0001982,2]
[359938675,1746437447188,-450.0,0.0001982,2]
[359938676,1746437447197,-450.0,0.0001982,2]
[359938677,1746437447207,-450.0,0.0001982,2]
[359938678,1746437447215,-450.0,0.0001982,2]
[359938679,1746437447225,-450.0,0.0001982,2]
[359938680,1746437447234,-450.0,0.0001982,2]
[359938681,1746437447244,-450.0,0.0001982,2]
[359938682,1746437447253,-205.66,0.0001982,2]
[359938683,1746437447262,-450.0,0.0001982,2]
[359938684,1746437447271,-450.0,0.0001982,2]
[359938685,1746437447280,-450.0,0.0001982,2]
[359938686,1746437447290,-450.0,0.0001982,2]
[359938687,1746437447299,-450.0,0.0001982,2]
[359938688,1746437447309,-450.0,0.0001982,2]
[359938689,1746437447319,-12500.0,0.00019821,2]
[359938690,1746437447328,-181.5973,0.00019821,2]
[359938691,1746437447337,-181.5973,0.00019821,2]
[359938692,1746437447347,-935.67431035,0.00019823,2]
[359938693,1746437447356,-12500.0,0.0001983,2]
[359938694,1746437447365,-151.0,0.0001983,2]
[359938695,1746437447375,-151.0,0.0001983,2]
[359938696,1746437447384,-654.86765512,0.00019832,2]
[359938697,1746437447393,-12500.0,0.00019838,2]
[359938698,1746437447402,-935.67431035,0.00019839,2]
[359938699,1746437447411,-181.5973,0.00019843,2]
[359938700,1746437447420,-181.5973,0.00019843,2]
[359938701,1746437447430,-450.0,0.00019846,2]
[359938702,1746437447439,-450.0,0.00019846,2]
[359938703,1746437447448,-450.0,0.00019846,2]
[359938704,1746437447458,-450.0,0.00019846,2]
[359938705,1746437447468,-450.0,0.00019846,2]
[359938706,1746437447481,-450.0,0.00019846,2]
[359938707,1746437447490,-450.0,0.00019846,2]
[359938708,1746437447499,-450.0,0.00019846,2]
[359938709,1746437447508,-450.0,0.00019846,2]
[359938710,1746437447519,-450.0,0.00019846,2]
[359938711,1746437447528,-450.0,0.00019846,2]
[359938712,1746437447537,-450.0,0.00019846,2]
[359938713,1746437447546,-450.0,0.00019846,2]
[359938714,1746437447555,-450.0,0.00019846,2]
[359938715,1746437447564,-450.0,0.00019846,2]
[359938716,1746437447574,-450.0,0.00019846,2]
[359938717,1746437447583,-450.0,0.00019846,2]
[359938718,1746437447592,-450.0,0.00019846,2]
[359938719,1746437447601,-450.0,0.00019846,2]
[359938720,1746437447610,-450.0,0.00019846,2]
[359938721,1746437447619,-210.97348375,0.00019846,2]
[359938722,1746437447629,-450.0,0.00019846,2]
[359938723,1746437447638,-450.0,0.00019846,2]
[359938724,1746437447647,-450.0,0.00019846,2]
[359938725,1746437447656,-204.06505654,0.00019846,2]
[359938726,1746437447665,-450.0,0.00019846,2]
[359938727,1746437447674,-450.0,0.00019846,2]
[359938728,1746437447683,-184.6176813,0.00019846,2]
[359938729,1746437447692,-450.0,0.00019846,2]
[359938730,1746437447701,-450.0,0.00019846,2]
[359938731,1746437447710,-450.0,0.00019846,2]
[359938732,1746437447719,-450.0,0.00019846,2]
[359938733,1746437447728,-450.0,0.00019846,2]
[359938734,1746437447736,-450.0,0.00019846,2]
[359938735,1746437447745,-450.0,0.00019846,2]
[359938736,1746437447754,-450.0,0.00019846,2]
[359938737,1746437447762,-450.0,0.00019846,2]
[359938738,1746437447771,-450.0,0.00019846,2]
[359938739,1746437447780,-450.0,0.00019846,2]
[359938740,1746437447788,-450.0,0.00019846,2]
[359938741,1746437447797,-450.0,0.00019846,2]
[359938742,1746437447806,-450.0,0.00019846,2]
[359938743,1746437447815,-6858.41,0.00019846,2]
[359938744,1746437447824,-450.0,0.00019846,2]
[359938745,1746437447833,-450.0,0.00019846,2]
[359938746,1746437447842,-450.0,0.00019846,2]
[359938747,1746437447851,-450.0,0.00019846,2]
[359938748,1746437447860,-450.0,0.00019846,2]
[359938749,1746437447869,-450.0,0.00019846,2]
[359938750,1746437447879,-450.0,0.00019846,2]
[359938751,1746437447888,-450.0,0.00019846,2]
[359938752,1746437447897,-450.0,0.00019846,2]
[359938753,1746437447906,-156.31576373,0.00019846,2]
[359938754,1746437447915,-450.0,0.00019846,2]
[359938755,1746437447925,-471.36,0.00019846,2]
[359938756,1746437447935,-450.0,0.00019846,2]
[359938757,1746437447945,-450.0,0.00019846,2]
[359938758,1746437447954,-151.0,0.00019846,2]
[359938759,1746437447963,-151.0,0.00019846,2]
[359938760,1746437447972,-450.0,0.00019846,2]
[359938761,1746437447981,-343.31234687,0.00019846,2]
[359938762,1746437447991,-481.34554279,0.00019846,2]
[359938763,1746437448000,-477.96,0.00019846,2]
[359938764,1746437448009,-12500.0,0.00019847,2]
[359938765,1746437448018,-935.67431035,0.00019854,2]
[359938766,1746437448028,-654.86765512,0.00019854,2]
[359938767,1746437448037,-151.0,0.00019856,2]
[359938768,1746437448047,-181.199382,0.00019856,2]
[359938769,1746437448057,-12500.0,0.00019856,2]
[359938770,1746437448066,-181.5973,0.00019862,2]
[359938771,1746437448075,-181.5973,0.00019862,2]
[359938772,1746437448085,-179.29,0.00019862,2]
[359938773,1746437448094,-1000.0,0.00019864,2]
[359938774,1746437448104,-285.0,0.00019864,2]
[359938775,1746437448113,-12500.0,0.00019865,2]
[359938776,1746437448123,-935.67431035,0.00019869,2]
[359938777,1746437448132,-500.0,0.00019873,2]
[359938778,1746437448141,-500.0,0.00019873,2]
[359938779,1746437448151,-500.0,0.00019873,2]
[359938780,1746437448160,-500.0,0.00019873,2]
[359938781,1746437448169,-654.86765512,0.00019877,2]
[359938782,1746437448178,-935.67431035,0.00019885,2]
[359938783,1746437448187,-172.6829814,0.00019899,2]
[359938784,1746437448196,-1562.7067,0.000199,2]
[359938785,1746437448206,-181.5973,0.000199,2]
[359938786,1746437448215,-181.5973,0.000199,2]
[359938787,1746437448224,-2839.18425645,0.000199,2]
[359938788,1746437448238,-9660.81574355,0.000199,2]
[359938789,1746437448247,-1104.31442138,0.000199,2]
[359938790,1746437448256,-654.86765512,0.000199,2]
[359938791,1746437448265,-151.0,0.000199,2]
[359938792,1746437448275,-151.0,0.000199,2]
[359938793,1746437448284,-498.54299824,0.000199,2]
[359938794,1746437448293,-1000.0,0.000199,2]
[359938795,1746437448302,-935.67431035,0.000199,2]
[359938796,1746437448311,-12959.77314129,0.000199,2]
[359938797,1746437448320,-300.0,0.00019973,2]
[359938798,1746437448329,-214.71,0.00019998,2]
[359938799,1746437448339,-540.85,0.00019998,2]
[359938800,1746437448348,-450.0,0.00019998,2]
[359938801,1746437448357,-450.0,0.00019998,2]
[359938802,1746437448367,-155.26,0.00019998,2]
[359938803,1746437448376,-292.23366017,0.00019999,2]
[359938804,1746437448385,-236.92906542,0.00019999,2]
[359938805,1746437448395,-450.0,0.00019999,2]
[359938806,1746437448407,-297.16316741,0.00019999,2]
[359938807,1746437448417,-450.0,0.00019999,2]
[359938808,1746437448427,-450.0,0.00019999,2]
[359938809,1746437448438,-210.83836096,0.00019999,2]
[359938810,1746437448449,-450.0,0.00019999,2]
[359938811,1746437448458,-464.56423979,0.00019999,2]
[359938812,1746437448469,-415.71,0.00019999,2]
[359938813,1746437448483,-450.0,0.00019999,2]
[359938814,1746437448492,-188.83203983,0.00019999,2]
[359938815,1746437448502,-198.19495743,0.00019999,2]
[359938816,1746437448512,-580.79,0.00019999,2]
[359938817,1746437448522,-450.0,0.00019999,2]
[359938818,1746437448532,-450.0,0.00019999,2]
[359938819,1746437448541,-489.1,0.00019999,2]
[359938820,1746437448551,-450.0,0.00019999,2]
[359938821,1746437448561,-450.0,0.00019999,2]
[359938822,1746437448570,-450.0,0.00019999,2]
[359938823,1746437448580,-450.0,0.00019999,2]
[359938824,1746437448589,-450.0,0.00019999,2]
[359938825,1746437448598,-223.4,0.00019999,2]
[359938826,1746437448608,-261.6,0.00019999,2]
[359938827,1746437448618,-450.0,0.00019999,2]
[359938828,1746437448627,-6858.41,0.00019999,2]
[359938829,1746437448637,-4205.42623906,0.00019999,2]
[359938830,1746437455887,1054.0,0.000194,2]
[359938831,1746437463389,169.04,0.00019178,2]
[359938832,1746437473499,309.88,0.00019346,2]
[359938833,1746437498944,150.050516,0.0003,30]
[359938834,1746437506612,150.050516,0.0003,31]
[359938838,1746437612115,690.0,0.00018981,2]
[359938839,1746437625043,247.36,0.00018968,2]
[359938840,1746437740720,150.0,0.0001892,2]
[359938841,1746437767345,204.15,0.00018929,2]
[359938842,1746437840910,248.03,0.00017002,2]
[359938843,1746437841106,248.03,0.00019266,2]
[359938844,1746437877405,500.0,0.00018919,2]
[359938845,1746437913419,990.30134974,0.0003013,120]
[359938857,1746438286191,-300.0,0.00019513,2]
[359938858,1746438319763,497.822367,0.00019415,2]
[359938859,1746438339590,1000.0,0.00018906,2]
[359938860,1746438389221,500.0,0.00018902,2]
[359939011,1746438461169,2900.0,0.000189,2]
[359939025,1746438594343,250.0,0.00017,2]
[359939026,1746438595422,300.0,0.00019,2]
[359939028,1746438619438,-300.0,0.00019503,2]
[359939029,1746438622228,-15.44706303,0.00019503,2]
[359939034,1746438631917,-1054.0,0.000196,2]
[359939035,1746438631926,-4.44493665,0.000196,2]
[359939036,1746438632073,-182.70516476,0.000196,2]
[359939037,1746438632083,-151.0,0.000196,2]
[359939038,1746438632092,-91.29174591,0.00019603,2]
[359939050,1746438637803,-108.70825409,0.00019603,2]
[359939051,1746438637813,-250.0,0.00019603,2]
[359939052,1746438637822,-315.44706301,0.00019605,2]
[359939053,1746438637832,-200.0,0.00019696,2]
[359939054,1746438637841,-315.44706301,0.00019707,2]
[359939055,1746438637851,-1200.0,0.00019787,2]
[359939056,1746438637860,-151.0,0.00019788,2]
[359939057,1746438637870,-207.4,0.00019788,2]
[359939058,1746438637879,-668.65185757,0.00019788,2]
[359939059,1746438637889,-300.0,0.00019798,2]
[359939060,1746438637898,-783.04441532,0.00019799,2]
[359939061,1746438637910,-348.70935091,0.00019799,2]
[359939062,1746438637925,-1383.1460726,0.00019799,2]
[359939063,1746438637937,-683.43119272,0.00019799,2]
[359939064,1746438637961,-5000.8580434,0.00019799,2]
[359939065,1746438638020,-1756.27846413,0.00019799,2]
[359939066,1746438638126,-5462.15246092,0.00019799,2]
[359939067,1746438638136,-6057.76,0.00019799,2]
[359939068,1746438638146,-1054.0,0.000198,2]
[359939069,1746438638155,-22965.46928834,0.000198,2]
[359939073,1746438640206,-268.26332858,0.000198,2]
[359939074,1746438640216,-258.70741301,0.00019807,2]
[359939075,1746438640226,-203.24774783,0.00019807,2]
[359939076,1746438640236,-450.0,0.00019807,2]
[359939077,1746438640245,-506.82,0.00019807,2]
[359939078,1746438640256,-242.35101051,0.00019807,2]
[359939079,1746438640266,-272.45358933,0.00019807,2]
[359939080,1746438640275,-450.0,0.00019807,2]
[359939081,1746438640284,-261.97097369,0.00019807,2]
[359939082,1746438640294,-450.0,0.00019807,2]
[359939083,1746438640303,-450.0,0.0001982,2]
[359939084,1746438640313,-450.0,0.0001982,2]
[359939085,1746438640323,-450.0,0.0001982,2]
[359939086,1746438640332,-450.0,0.0001982,2]
[359939087,1746438640341,-450.0,0.0001982,2]
[359939088,1746438640351,-462.77035618,0.0001982,2]
[359939089,1746438640360,-571.63685191,0.0001982,2]
[359939090,1746438640370,-450.0,0.0001982,2]
[359939091,1746438640379,-574.10734261,0.0001982,2]
[359939092,1746438640389,-450.0,0.0001982,2]
[359939093,1746438640398,-451.53656902,0.0001982,2]
[359939094,1746438640408,-227.16,0.0001982,2]
[359939095,1746438640418,-460.72547951,0.0001982,2]
[359939096,1746438640428,-177.436,0.00019873,2]
[359939097,1746438640437,-853.415,0.00019873,2]
[359939098,1746438640446,-383.50358847,0.00019895,2]
[359939099,1746438640455,-383.50358839,0.00019896,2]
[359939100,1746438640465,-383.50358839,0.00019896,2]
[359939101,1746438640475,-383.50358839,0.00019897,2]
[359939102,1746438640484,-2106.1887,0.00019897,2]
[359939103,1746438640494,-383.50358839,0.00019897,2]
[359939104,1746438640504,-383.50358839,0.00019898,2]
[359939105,1746438640513,-633.77559,0.00019898,2]
[359939106,1746438640523,-383.50358839,0.00019898,2]
[359939107,1746438640533,-383.50358839,0.00019899,2]
[359939108,1746438640543,-529.45170266,0.00019899,2]
[359939109,1746438640553,-529.45170264,0.00019899,2]
[359939110,1746438640563,-529.45170264,0.00019899,2]
[359939111,1746438640572,-529.45170264,0.00019899,2]
[359939112,1746438640582,-529.45170264,0.00019899,2]
[359939113,1746438640591,-383.50358839,0.00019899,2]
[359939114,1746438640601,-529.45170264,0.000199,2]
[359939115,1746438640611,-529.45170264,0.000199,2]
[359939116,1746438640620,-287.21815875,0.000199,2]
[359939117,1746438640633,-242.23354389,0.000199,2]
[359939118,1746438640643,-529.45170264,0.000199,2]
[359939119,1746438640652,-8283.05550973,0.000199,2]
[359939120,1746438640680,-426.12234373,0.000199,2]
[359939129,1746438643022,-2059.11394181,0.000199,2]
[359939130,1746438643034,-762.4836953,0.000199,2]
[359939131,1746438643043,-529.45170264,0.000199,2]
[359939132,1746438643053,-57.31460206,0.000199,2]
[359939133,1746438643179,-1810.8,0.000199,2]
[359939144,1746438646197,-474.0853,0.000199,2]
[359939145,1746438647741,169.04,0.00019178,2]
[359939146,1746438692622,152.0,0.00015348,2]
[359939148,1746438756211,176.567966,0.00018762,2]
[359939149,1746438756498,176.567966,0.00019075,2]
[359939150,1746438756803,176.567966,0.00019388,2]
[359939151,1746438826656,269.36,0.00017058,2]
[359939152,1746438826843,269.36,0.00019322,2]
[359939153,1746438968184,556.7191406,0.0003,30]
[359939154,1746439013213,152.52,0.00018971,2]
[359939155,1746439256876,1009.0,0.000194,2]
[359939156,1746439451154,1000.0,0.00018939,2]
[359939157,1746439465872,21326.96,0.00018946,2]
[359939272,1746439832002,-752.6022343,0.000196,2]
[359939273,1746439832056,-256.3977657,0.000196,2]
[359939274,1746439832066,-87.39779353,0.000196,2]
[359939275,1746439832111,-162.60220647,0.000196,2]
[359939276,1746439832122,-590.5153,0.000196,2]
[359939277,1746439832131,-200.0,0.00019622,2]
[359939278,1746439832140,-82.99249353,0.000197,2]
[359939279,1746439832216,-93.57547247,0.000197,2]
[359939280,1746439832226,-200.0,0.00019726,2]
[359939281,1746439832235,-181.14877753,0.0001979,2]
[359939282,1746439832247,-918.92769387,0.0001979,2]
[359939283,1746439832256,-300.0,0.00019799,2]
[359939284,1746439832265,-1200.0,0.00019799,2]
[359939285,1746439832275,-280.0,0.00019799,2]
[359939286,1746439832284,-1009.0,0.000198,2]
[359939287,1746439832293,-47718.57497765,0.000198,2]
[359939288,1746439832302,-207.4,0.00019887,2]
[359939289,1746439832311,-668.65185757,0.00019888,2]
[359939290,1746439832320,-151.0,0.00019888,2]
[359939291,1746439832330,-406.17290323,0.00019891,2]
[359939292,1746439832339,-406.17290318,0.00019892,2]
[359939293,1746439832349,-406.17290318,0.00019893,2]
[359939294,1746439832360,-406.17290318,0.00019894,2]
[359939295,1746439832371,-406.17290318,0.00019895,2]
[359939297,1746439832381,-406.17290318,0.00019896,2]
[359939299,1746439832390,-406.17290318,0.00019897,2]
[359939301,1746439832400,-406.17290318,0.00019898,2]
[359939303,1746439832410,-236.97992493,0.00019899,2]
[359939305,1746439832419,-406.17290318,0.00019899,2]
[359939307,1746439832428,-164.8465093,0.00019899,2]
[359939309,1746439832437,-236.97992491,0.00019899,2]
[359939311,1746439832448,-236.97992491,0.00019899,2]
[359939313,1746439832458,-236.97992491,0.00019899,2]
[359939315,1746439832467,-236.97992491,0.00019899,2]
[359939317,1746439832476,-236.97992491,0.000199,2]
[359939318,1746439832485,-236.97992491,0.000199,2]
[359939320,1746439832494,-236.97992491,0.000199,2]
[359939322,1746439832503,-236.97992491,0.000199,2]
[359939323,1746439832512,-236.97992491,0.000199,2]
[359939324,1746439832521,-151.0,0.000199,2]
[359939325,1746439832531,-406.17290318,0.000199,2]
[359939326,1746439832540,-11801.452412,0.000199,2]
[359939327,1746439832549,-202.624,0.00019929,2]
[359939328,1746439832559,-887.123,0.00019929,2]
[359939329,1746439832568,-500.0,0.00019973,2]
[359939330,1746439832578,-500.0,0.00019973,2]
[359939331,1746439832588,-158.33,0.00019979,2]
[359939332,1746439832598,-158.33,0.00019984,2]
[359939333,1746439832608,-3569.36,0.00019985,2]
[359939334,1746439832618,-230.8602777,0.00019986,2]
[359939335,1746439832627,-158.33,0.00019987,2]
[359939336,1746439832637,-500.0,0.00019988,2]
[359939337,1746439832647,-1360.27823565,0.00019988,2]
[359939338,1746439832656,-500.0,0.00019988,2]
[359939339,1746439832666,-500.0,0.00019988,2]
[359939340,1746439832676,-1360.27823565,0.00019988,2]
[359939341,1746439832688,-500.0,0.00019988,2]
[359939342,1746439832697,-1360.27823565,0.00019988,2]
[359939343,1746439832707,-158.33,0.00019988,2]
[359939344,1746439832716,-926.0,0.00019988,2]
[359939345,1746439832726,-1300.0,0.00019988,2]
[359939346,1746439832735,-820.504,0.00019988,2]
[359939347,1746439832745,-13635.71709934,0.00019989,2]
[359939348,1746439832754,-158.33,0.00019989,2]
[359939349,1746439832767,-158.33,0.00019989,2]
[359939350,1746439832777,-158.33,0.00019989,2]
[359939351,1746439832786,-158.33,0.00019989,2]
[359939352,1746439832796,-682.732,0.00019989,2]
[359939353,1746439832806,-151.0,0.00019989,2]
[359939354,1746439832814,-151.0,0.0001999,2]
[359939355,1746439832823,-151.0,0.00019992,2]
[359939356,1746439832833,-1000.0,0.00019994,2]
[359939357,1746439832843,-1000.0,0.00019994,2]
[359939358,1746439832853,-1000.0,0.00019994,2]
[359939359,1746439832862,-632.0,0.00019994,2]
[359939360,1746439832872,-450.0,0.00019997,2]
[359939361,1746439832882,-450.0,0.00019997,2]
[359939362,1746439832891,-450.0,0.00019997,2]
[359939363,1746439832901,-450.0,0.00019997,2]
[359939364,1746439832910,-450.0,0.00019997,2]
[359939365,1746439832920,-450.0,0.00019997,2]
[359939366,1746439832929,-450.0,0.00019997,2]
[359939367,1746439832938,-450.0,0.00019997,2]
[359939368,1746439832948,-450.0,0.00019997,2]
[359939369,1746439832958,-450.0,0.00019997,2]
[359939370,1746439832967,-450.0,0.00019997,2]
[359939371,1746439832976,-450.0,0.00019997,2]
[359939372,1746439832986,-250.0,0.00019997,2]
[359939373,1746439832996,-450.0,0.00019997,2]
[359939374,1746439833006,-450.0,0.00019997,2]
[359939375,1746439833016,-450.0,0.00019997,2]
[359939376,1746439833027,-450.0,0.00019997,2]
[359939377,1746439833037,-295.35663963,0.00019997,2]
[359939378,1746439833047,-255.75621691,0.00019997,2]
[359939379,1746439833056,-312.33478504,0.00019997,2]
[359939380,1746439833065,-246.70662978,0.00019997,2]
[359939381,1746439833076,-450.0,0.00019997,2]
[359939382,1746439833087,-333.03,0.00019997,2]
[359939383,1746439833098,-450.0,0.00019997,2]
[359939384,1746439833109,-450.0,0.00019997,2]
[359939385,1746439833119,-450.0,0.00019997,2]
[359939386,1746439833130,-450.0,0.00019997,2]
[359939387,1746439833139,-185.09,0.00019997,2]
[359939388,1746439833148,-450.0,0.00019997,2]
[359939389,1746439833158,-263.08645229,0.00019997,2]
[359939390,1746439833168,-450.0,0.00019997,2]
[359939391,1746439833178,-450.0,0.00019997,2]
[359939392,1746439833187,-450.0,0.00019997,2]
[359939393,1746439833197,-461.20088184,0.00019997,2]
[359939394,1746439833207,-464.23,0.00019997,2]
[359939395,1746439833216,-450.0,0.00019997,2]
[359939396,1746439833226,-210.04411713,0.00019997,2]
[359939397,1746439833235,-10123.24,0.00019997,2]
[359939398,1746439833244,-450.0,0.00019997,2]
[359939399,1746439833254,-450.0,0.00019997,2]
[359939400,1746439833264,-450.0,0.00019997,2]
[359939401,1746439833273,-450.0,0.00019997,2]
[359939402,1746439833282,-584.72,0.00019997,2]
[359939403,1746439833291,-450.0,0.00019997,2]
[359939404,1746439833301,-450.0,0.00019997,2]
[359939405,1746439833311,-207.94,0.00019997,2]
[359939406,1746439833320,-450.0,0.00019997,2]
[359939407,1746439833330,-450.0,0.00019997,2]
[359939408,1746439833339,-323.79,0.00019997,2]
[359939409,1746439833349,-450.0,0.00019997,2]
[359939410,1746439833359,-450.0,0.00019997,2]
[359939411,1746439833368,-450.0,0.00019997,2]
[359939412,1746439833378,-500.0,0.00019997,2]
[359939413,1746439833387,-450.0,0.00019997,2]
[359939414,1746439833395,-450.0,0.00019997,2]
[359939415,1746439833405,-239.44,0.00019997,2]
[359939416,1746439833415,-450.0,0.00019997,2]
[359939417,1746439833425,-450.0,0.00019997,2]
[359939418,1746439833435,-450.0,0.00019997,2]
[359939419,1746439833444,-450.0,0.00019997,2]
[359939420,1746439833453,-450.0,0.00019997,2]
[359939421,1746439833463,-450.0,0.00019997,2]
[359939422,1746439833473,-450.0,0.00019997,2]
[359939423,1746439833482,-450.0,0.00019997,2]
[359939424,1746439833491,-450.0,0.00019997,2]
[359939425,1746439833501,-450.0,0.00019997,2]
[359939426,1746439833510,-450.0,0.00019997,2]
[359939427,1746439833520,-2222.25,0.00019997,2]
[359939428,1746439833530,-450.0,0.00019997,2]
[359939429,1746439833540,-450.0,0.00019997,2]
[359939430,1746439833549,-450.0,0.00019997,2]
[359939431,1746439833559,-450.0,0.00019997,2]
[359939432,1746439833569,-525.17372169,0.00019997,2]
[359939433,1746439833578,-450.0,0.00019997,2]
[359939434,1746439833588,-450.0,0.00019997,2]
[359939435,1746439833597,-450.0,0.00019997,2]
[359939436,1746439833607,-588.32,0.00019997,2]
[359939437,1746439833616,-222.10148348,0.00019997,2]
[359939438,1746439837996,-982.769215,0.00019929,2]
[359939439,1746439838007,-172.293785,0.00019929,2]
[359939440,1746439838017,-500.0,0.00019988,2]
[359939441,1746439838026,-356.93367379,0.00019988,2]
[359939442,1746439838258,-1003.34456186,0.00019988,2]
[359939443,1746439838267,-500.0,0.00019988,2]
[359939444,1746439838277,-500.0,0.00019988,2]
[359939445,1746439838286,-701.21543814,0.00019988,2]
[359939446,1746439838298,-447.89134999,0.00019988,2]
[359939447,1746439838310,-211.17144752,0.00019988,2]
[359939448,1746439838320,-599.90311613,0.00019988,2]
[359939449,1746439838329,-145.02689482,0.00019988,2]
[359939507,1746439840156,-788.7241764,0.00019988,2]
[359939508,1746439840211,-426.52716443,0.00019988,2]
[359939509,1746439840219,-209.51534697,0.00019988,2]
[359939510,1746439840231,-290.48465303,0.00019988,2]
[359939511,1746439840240,-173.54930697,0.00019988,2]
[359939545,1746439846032,-1186.72892868,0.00019988,2]
[359939546,1746439846042,-500.0,0.00019988,2]
[359939547,1746439846052,-24.85603277,0.00019988,2]
[359939548,1746439846141,-1335.42220288,0.00019988,2]
[359939549,1746439846150,-1360.27823565,0.00019988,2]
[359939550,1746439846160,-500.0,0.00019988,2]
[359939551,1746439846169,-1360.27823565,0.00019988,2]
[359939552,1746439846179,-500.0,0.00019988,2]
[359939553,1746439846188,-500.0,0.00019988,2]
[359939554,1746439846198,-1360.27823565,0.00019988,2]
[359939555,1746439846207,-500.0,0.00019988,2]
[359939556,1746439846216,-1360.27823565,0.00019988,2]
[359939557,1746439846226,-500.0,0.00019988,2]
[359939558,1746439846236,-1360.27823565,0.00019988,2]
[359939559,1746439846246,-500.0,0.00019988,2]
[359939560,1746439846257,-1360.27823565,0.00019988,2]
[359939561,1746439846266,-500.0,0.00019988,2]
[359939562,1746439846276,-1360.27823565,0.00019988,2]
[359939563,1746439846286,-1360.27823565,0.00019988,2]
[359939564,1746439846295,-500.0,0.00019988,2]
[359939565,1746439846305,-1360.27823565,0.00019988,2]
[359939566,1746439846315,-1360.27823565,0.00019988,2]
[359939567,1746439846324,-1360.27823565,0.00019988,2]
[359939568,1746439846334,-1360.27823565,0.00019988,2]
[359939569,1746439846344,-1360.27823565,0.00019988,2]
[359939570,1746439846353,-1360.27823565,0.00019988,2]
[359939571,1746439846362,-1360.27823565,0.00019988,2]
[359939572,1746439846372,-1360.27823565,0.00019988,2]
[359939573,1746439846382,-1360.27823565,0.00019988,2]
[359939574,1746439846391,-1360.27823565,0.00019988,2]
[359939575,1746439846400,-1360.27823565,0.00019988,2]
[359939576,1746439846409,-1360.27823565,0.00019988,2]
[359939577,1746439846417,-1360.27823565,0.00019988,2]